fUSD/lending_fUSD_20241110
["ID","MTS","AMOUNT","RATE_DAILY","PERIOD"]
[341912215,1731280248785,-500.0,0.00014719,2]
[341912216,1731280248794,-500.0,0.00014719,2]
[341912217,1731280248803,-1275.79,0.00014719,2]
[341912218,1731280248813,-960.63,0.00014719,2]
[341912219,1731280248822,-601.58,0.00014719,2]
[341912220,1731280248832,-500.0,0.00014719,2]
[341912221,1731280248841,-576.29,0.0001472,2]
[341912222,1731280248851,-991.63,0.0001472,2]
[341912223,1731280248861,-500.0,0.0001472,2]
[341912224,1731280248871,-2076.26,0.0001472,2]
[341912225,1731280248880,-500.0,0.0001472,2]
[341912226,1731280248890,-500.0,0.0001472,2]
[341912227,1731280248899,-1509.36,0.0001472,2]
[341912228,1731280248908,-1020.5,0.0001472,2]
[341912229,1731280248917,-1106.25,0.0001472,2]
[341912230,1731280248927,-966.38,0.0001472,2]
[341912231,1731280248936,-935.31,0.0001472,2]
[341912232,1731280248945,-1075.93,0.0001472,2]
[341912233,1731280248954,-600.19,0.0001472,2]
[341912234,1731280248964,-500.0,0.0001472,2]
[341912235,1731280248973,-500.0,0.0001472,2]
[341912236,1731280248983,-500.0,0.0001472,2]
[341912237,1731280248993,-500.0,0.0001472,2]
[341912238,1731280249003,-640.36,0.0001472,2]
[341912239,1731280249012,-500.0,0.0001472,2]
[341912240,1731280249020,-727.85,0.0001472,2]
[341912241,1731280249030,-500.0,0.0001472,2]
[341912242,1731280249039,-500.0,0.0001472,2]
[341912243,1731280249048,-500.0,0.0001472,2]
[341912244,1731280249057,-500.0,0.0001472,2]
[341912245,1731280249066,-629.56,0.0001472,2]
[341912246,1731280249076,-1177.07,0.0001472,2]
[341912247,1731280249085,-533.64,0.0001472,2]
[341912248,1731280249094,-1289.62,0.0001472,2]
[341912249,1731280249103,-1809.03,0.0001472,2]
[341912250,1731280249112,-500.0,0.0001472,2]
[341912251,1731280249121,-977.94,0.0001472,2]
[341912252,1731280249130,-1995.64,0.0001472,2]
[341912253,1731280249139,-500.0,0.0001472,2]
[341912254,1731280249148,-500.0,0.0001472,2]
[341912255,1731280249157,-893.22,0.0001472,2]
[341912256,1731280249167,-521.24,0.0001472,2]
[341912257,1731280249176,-500.0,0.0001472,2]
[341912258,1731280249185,-581.61,0.0001472,2]
[341912259,1731280249195,-906.47,0.0001472,2]
[341912260,1731280249204,-1690.58,0.0001472,2]
[341912261,1731280249214,-1630.22,0.0001472,2]
[341912262,1731280249223,-650.97,0.0001472,2]
[341912263,1731280249232,-515.07,0.0001472,2]
[341912264,1731280249242,-1438.57,0.0001472,2]
[341912265,1731280249251,-507.03,0.0001472,2]
[341912266,1731280249261,-675.33,0.0001472,2]
[341912267,1731280249270,-500.0,0.0001472,2]
[341912268,1731280249280,-641.79,0.0001472,2]
[341912269,1731280249289,-634.43,0.0001472,2]
[341912270,1731280249298,-500.0,0.0001472,2]
[341912271,1731280249307,-500.0,0.0001472,2]
[341912272,1731280249316,-500.0,0.0001472,2]
[341912273,1731280249326,-500.0,0.0001472,2]
[341912274,1731280249335,-500.0,0.0001472,2]
[341912275,1731280249344,-500.0,0.0001472,2]
[341912276,1731280249357,-825.14,0.0001472,2]
[341912277,1731280249366,-923.1,0.0001472,2]
[341912278,1731280249375,-1049.07,0.0001472,2]
[341912279,1731280249385,-1464.68,0.0001472,2]
[341912280,1731280249394,-1065.88,0.0001472,2]
[341912281,1731280249403,-500.0,0.0001472,2]
[341912282,1731280249412,-500.0,0.0001472,2]
[341912283,1731280249421,-500.0,0.0001472,2]
[341912284,1731280249432,-568.61,0.0001472,2]
[341912285,1731280249442,-500.0,0.00014773,2]
[341912286,1731280249451,-500.0,0.00014773,2]
[341912287,1731280249462,-185.5186,0.00014785,2]
[341912288,1731280249471,-576.29,0.00014786,2]
[341912289,1731280249480,-991.63,0.00014786,2]
[341912290,1731280249490,-500.0,0.00014786,2]
[341912291,1731280249500,-2076.26,0.00014786,2]
[341912292,1731280249510,-500.0,0.00014786,2]
[341912293,1731280249519,-506.93397092,0.00014786,2]
[341912294,1731280249528,-1509.36,0.00014786,2]
[341912295,1731280249538,-1020.5,0.00014786,2]
[341912296,1731280249548,-1106.25,0.00014786,2]
[341912297,1731280249557,-966.38,0.00014786,2]
[341912298,1731280249567,-935.31,0.00014786,2]
[341912299,1731280249576,-1075.93,0.00014786,2]
[341912300,1731280249587,-600.19,0.00014786,2]
[341912301,1731280249596,-500.0,0.00014786,2]
[341912302,1731280249606,-500.0,0.00014786,2]
[341912303,1731280249615,-500.0,0.00014786,2]
[341912304,1731280249625,-500.0,0.00014786,2]
[341912305,1731280249634,-640.36,0.00014786,2]
[341912306,1731280249644,-500.0,0.00014786,2]
[341912307,1731280249653,-727.85,0.00014786,2]
[341912308,1731280249662,-500.0,0.00014786,2]
[341912309,1731280249672,-500.0,0.00014786,2]
[341912310,1731280249681,-500.0,0.00014786,2]
[341912311,1731280249690,-500.0,0.00014786,2]
[341912312,1731280249699,-629.56,0.00014786,2]
[341912313,1731280249711,-1177.07,0.00014786,2]
[341912314,1731280249720,-533.64,0.00014786,2]
[341912315,1731280249730,-1289.62,0.00014786,2]
[341912316,1731280249741,-1809.03,0.00014786,2]
[341912317,1731280249750,-977.94,0.00014786,2]
[341912318,1731280249760,-1995.64,0.00014786,2]
[341912319,1731280249769,-500.0,0.00014786,2]
[341912320,1731280249779,-500.0,0.00014786,2]
[341912321,1731280249788,-893.22,0.00014786,2]
[341912322,1731280249798,-500.0,0.00014786,2]
[341912323,1731280249807,-581.61,0.00014786,2]
[341912324,1731280249817,-906.47,0.00014786,2]
[341912325,1731280249831,-1690.58,0.00014786,2]
[341912326,1731280249846,-1630.22,0.00014786,2]
[341912327,1731280249856,-650.97,0.00014786,2]
[341912328,1731280249866,-515.07,0.00014786,2]
[341912329,1731280249876,-1438.57,0.00014786,2]
[341912330,1731280249885,-507.03,0.00014786,2]
[341912331,1731280249896,-675.33,0.00014786,2]
[341912332,1731280249906,-500.0,0.00014786,2]
[341912333,1731280249916,-641.79,0.00014786,2]
[341912334,1731280249926,-634.43,0.00014786,2]
[341912335,1731280249936,-500.0,0.00014786,2]
[341912336,1731280249946,-500.0,0.00014786,2]
[341912337,1731280249958,-500.0,0.00014786,2]
[341912338,1731280249970,-500.0,0.00014786,2]
[341912339,1731280249980,-295.35248861,0.00014786,2]
[341912340,1731280249990,-500.0,0.00014786,2]
[341912341,1731280250000,-825.14,0.00014786,2]
[341912342,1731280250010,-923.1,0.00014786,2]
[341912343,1731280250019,-1049.07,0.00014786,2]
[341912344,1731280250030,-1464.68,0.00014786,2]
[341912345,1731280250040,-1065.88,0.00014786,2]
[341912346,1731280250050,-500.0,0.00014786,2]
[341912347,1731280250060,-500.0,0.00014786,2]
[341912348,1731280250070,-500.0,0.00014786,2]
[341912349,1731280250079,-568.61,0.00014786,2]
[341912350,1731280250089,-836.18,0.00014786,2]
[341912351,1731280250099,-1359.5,0.00014786,2]
[341912352,1731280250108,-907.71,0.00014786,2]
[341912353,1731280250117,-678.28,0.00014786,2]
[341912354,1731280250127,-2548.79,0.00014786,2]
[341912355,1731280250136,-500.0,0.00014786,2]
[341912356,1731280250146,-500.0,0.00014786,2]
[341912357,1731280250156,-500.0,0.00014786,2]
[341912358,1731280250165,-544.09,0.00014786,2]
[341912359,1731280250174,-2171.13,0.00014786,2]
[341912360,1731280250184,-500.0,0.00014786,2]
[341912361,1731280250194,-1275.79,0.00014786,2]
[341912362,1731280250204,-4360.89,0.00014786,2]
[341912363,1731280250217,-960.63,0.00014786,2]
[341912364,1731280250227,-601.58,0.00014786,2]
[341912365,1731280250237,-12500.0,0.00014786,2]
[341912366,1731280250247,-500.0,0.00014786,2]
[341912367,1731280250257,-576.29,0.00014787,2]
[341912368,1731280250267,-576.29,0.00014787,2]
[341912369,1731280250277,-991.63,0.00014787,2]
[341912370,1731280250286,-991.63,0.00014787,2]
[341912371,1731280250295,-500.0,0.00014787,2]
[341912372,1731280250305,-500.0,0.00014787,2]
[341912373,1731280250315,-2076.26,0.00014787,2]
[341912374,1731280250325,-2076.26,0.00014787,2]
[341912375,1731280250334,-500.0,0.00014787,2]
[341912376,1731280250344,-500.0,0.00014787,2]
[341912377,1731280250358,-1509.36,0.00014787,2]
[341912378,1731280250368,-1509.36,0.00014787,2]
[341912379,1731280250380,-1020.5,0.00014787,2]
[341912380,1731280250389,-1020.5,0.00014787,2]
[341912381,1731280250399,-1106.25,0.00014787,2]
[341912382,1731280250408,-1106.25,0.00014787,2]
[341912383,1731280250418,-966.38,0.00014787,2]
[341912384,1731280250429,-966.38,0.00014787,2]
[341912385,1731280250439,-935.31,0.00014787,2]
[341912386,1731280250449,-935.31,0.00014787,2]
[341912387,1731280250461,-1075.93,0.00014787,2]
[341912388,1731280250471,-1075.93,0.00014787,2]
[341912389,1731280250480,-600.19,0.00014787,2]
[341912390,1731280250490,-600.19,0.00014787,2]
[341912391,1731280250499,-500.0,0.00014787,2]
[341912392,1731280250509,-500.0,0.00014787,2]
[341912393,1731280250519,-500.0,0.00014787,2]
[341912394,1731280250529,-500.0,0.00014787,2]
[341912395,1731280250539,-500.0,0.00014787,2]
[341912396,1731280250549,-500.0,0.00014787,2]
[341912397,1731280250559,-166.3950372,0.00014787,2]
[341912398,1731280250569,-640.36,0.00014787,2]
[341912399,1731280250579,-640.36,0.00014787,2]
[341912400,1731280250590,-500.0,0.00014787,2]
[341912401,1731280250601,-500.0,0.00014787,2]
[341912402,1731280250611,-727.85,0.00014787,2]
[341912403,1731280250621,-727.85,0.00014787,2]
[341912404,1731280250631,-500.0,0.00014787,2]
[341912405,1731280250640,-500.0,0.00014787,2]
[341912406,1731280250650,-500.0,0.00014787,2]
[341912407,1731280250660,-500.0,0.00014787,2]
[341912408,1731280250669,-500.0,0.00014787,2]
[341912409,1731280250679,-500.0,0.00014787,2]
[341912410,1731280250688,-500.0,0.00014787,2]
[341912411,1731280250698,-500.0,0.00014787,2]
[341912412,1731280250708,-629.56,0.00014787,2]
[341912413,1731280250717,-629.56,0.00014787,2]
[341912414,1731280250727,-1177.07,0.00014787,2]
[341912415,1731280250737,-1177.07,0.00014787,2]
[341912416,1731280250747,-533.64,0.00014787,2]
[341912417,1731280250756,-533.64,0.00014787,2]
[341912418,1731280250765,-1289.62,0.00014787,2]
[341912419,1731280250775,-1289.62,0.00014787,2]
[341912420,1731280250785,-1809.03,0.00014787,2]
[341912421,1731280250795,-1809.03,0.00014787,2]
[341912422,1731280250805,-977.94,0.00014787,2]
[341912423,1731280250815,-977.94,0.00014787,2]
[341912424,1731280250825,-1995.64,0.00014787,2]
[341912425,1731280250835,-1995.64,0.00014787,2]
[341912426,1731280250845,-500.0,0.00014787,2]
[341912427,1731280250855,-371.89901709,0.00014787,2]
[341912428,1731280250864,-500.0,0.00014787,2]
[341912429,1731280250873,-500.0,0.00014787,2]
[341912430,1731280250883,-893.22,0.00014787,2]
[341912431,1731280250892,-893.22,0.00014787,2]
[341912432,1731280250902,-500.0,0.00014787,2]
[341912433,1731280250911,-438.12447565,0.00014787,2]
[341912434,1731280250921,-581.61,0.00014787,2]
[341912435,1731280250931,-581.61,0.00014787,2]
[341912436,1731280250940,-906.47,0.00014787,2]
[341912437,1731280250950,-906.47,0.00014787,2]
[341912438,1731280250964,-500.0,0.00014787,2]
[341912439,1731280250973,-564.98196076,0.00014787,2]
[341912440,1731280250983,-500.0,0.00014787,2]
[341912441,1731280250993,-1690.58,0.00014787,2]
[341912442,1731280251004,-1690.58,0.00014787,2]
[341912443,1731280251014,-500.0,0.00014787,2]
[341912444,1731280251023,-518.1780641,0.00014787,2]
[341912445,1731280251033,-500.0,0.00014787,2]
[341912446,1731280251043,-1630.22,0.00014787,2]
[341912447,1731280251052,-1630.22,0.00014787,2]
[341912448,1731280251062,-500.0,0.00014787,2]
[341912449,1731280251071,-1004.35,0.00014787,2]
[341912450,1731280251081,-650.97,0.00014787,2]
[341912451,1731280251090,-650.97,0.00014787,2]
[341912452,1731280251100,-500.0,0.00014787,2]
[341912453,1731280251110,-2813.07,0.00014787,2]
[341912454,1731280251120,-500.0,0.00014787,2]
[341912455,1731280251130,-515.07,0.00014787,2]
[341912456,1731280251140,-515.07,0.00014787,2]
[341912457,1731280251150,-500.0,0.00014787,2]
[341912458,1731280251161,-2695.9,0.00014787,2]
[341912459,1731280251171,-500.0,0.00014787,2]
[341912460,1731280251181,-1438.57,0.00014787,2]
[341912461,1731280251192,-1438.57,0.00014787,2]
[341912462,1731280251202,-500.0,0.00014787,2]
[341912463,1731280251213,-507.03,0.00014787,2]
[341912464,1731280251223,-507.03,0.00014787,2]
[341912465,1731280251233,-380.94249388,0.00014787,2]
[341912466,1731280251243,-559.32,0.00014787,2]
[341912467,1731280251252,-3156.33,0.00014787,2]
[341912468,1731280251263,-500.0,0.00014787,2]
[341912469,1731280251273,-500.0,0.00014787,2]
[341912470,1731280251282,-675.33,0.00014787,2]
[341912471,1731280251292,-675.33,0.00014787,2]
[341912472,1731280251302,-500.0,0.00014787,2]
[341912473,1731280251311,-850.56,0.00014787,2]
[341912474,1731280251322,-500.0,0.00014787,2]
[341912475,1731280251331,-2684.26,0.00014787,2]
[341912476,1731280251341,-500.0,0.00014787,2]
[341912477,1731280251355,-500.0,0.00014787,2]
[341912478,1731280251365,-641.79,0.00014787,2]
[341912479,1731280251375,-641.79,0.00014787,2]
[341912480,1731280251384,-16402.28056992,0.00014787,2]
[341912481,1731280251395,-500.0,0.00014787,2]
[341912482,1731280251404,-3386.01,0.00014787,2]
[341912483,1731280251414,-500.0,0.00014787,2]
[341912484,1731280251424,-500.0,0.00014787,2]
[341912485,1731280251434,-634.43,0.00014787,2]
[341912486,1731280251445,-634.43,0.00014787,2]
[341912487,1731280251455,-500.0,0.00014787,2]
[341912488,1731280251467,-500.0,0.00014787,2]
[341912489,1731280251476,-500.0,0.00014787,2]
[341912490,1731280251486,-353.01301073,0.00014787,2]
[341912491,1731280251496,-1166.02,0.00014787,2]
[341912492,1731280251505,-500.0,0.00014787,2]
[341912493,1731280251515,-500.0,0.00014787,2]
[341912494,1731280251524,-500.0,0.00014787,2]
[341912495,1731280251534,-500.0,0.00014787,2]
[341912496,1731280251543,-500.0,0.00014787,2]
[341912497,1731280251553,-500.0,0.00014787,2]
[341912498,1731280251562,-1278.73,0.00014787,2]
[341912499,1731280251571,-500.0,0.00014787,2]
[341912500,1731280251581,-500.0,0.00014787,2]
[341912501,1731280251591,-500.0,0.00014787,2]
[341912502,1731280251601,-585.35,0.00014787,2]
[341912503,1731280251611,-500.0,0.00014787,2]
[341912504,1731280251620,-500.0,0.00014787,2]
[341912505,1731280251630,-500.0,0.00014787,2]
[341912506,1731280251640,-983.71,0.00014787,2]
[341912507,1731280251649,-500.0,0.00014787,2]
[341912508,1731280251659,-500.0,0.00014787,2]
[341912509,1731280251668,-500.0,0.00014787,2]
[341912510,1731280251678,-825.14,0.00014787,2]
[341912511,1731280251688,-825.14,0.00014787,2]
[341912512,1731280251699,-500.0,0.00014787,2]
[341912513,1731280251896,-923.1,0.00014787,2]
[341912514,1731280251907,-923.1,0.00014787,2]
[341912515,1731280251917,-500.0,0.00014787,2]
[341912516,1731280251926,-1049.07,0.00014787,2]
[341912517,1731280251936,-1049.07,0.00014787,2]
[341912518,1731280251945,-1464.68,0.00014787,2]
[341912519,1731280251955,-1464.68,0.00014787,2]
[341912520,1731280251966,-529.79,0.00014787,2]
[341912521,1731280251975,-1065.88,0.00014787,2]
[341912522,1731280251985,-1065.88,0.00014787,2]
[341912523,1731280251995,-879.33,0.00014787,2]
[341912524,1731280252005,-500.0,0.00014787,2]
[341912525,1731280252014,-500.0,0.00014787,2]
[341912526,1731280252023,-500.0,0.00014787,2]
[341912527,1731280252032,-500.0,0.00014787,2]
[341912528,1731280252042,-500.0,0.00014787,2]
[341912529,1731280252051,-500.0,0.00014787,2]
[341912530,1731280252060,-992.93,0.00014787,2]
[341912531,1731280252069,-500.0,0.00014787,2]
[341912532,1731280252078,-500.0,0.00014787,2]
[341912533,1731280252087,-500.0,0.00014787,2]
[341912534,1731280252097,-500.0,0.00014787,2]
[341912535,1731280252106,-500.0,0.00014787,2]
[341912536,1731280252115,-1432.29,0.00014787,2]
[341912537,1731280252124,-500.0,0.00014787,2]
[341912538,1731280252133,-500.0,0.00014787,2]
[341912539,1731280252143,-500.0,0.00014787,2]
[341912540,1731280252153,-500.0,0.00014787,2]
[341912541,1731280252163,-1000.07,0.00014787,2]
[341912542,1731280252171,-791.25,0.00014787,2]
[341912543,1731280252181,-500.0,0.00014787,2]
[341912544,1731280252190,-717.68,0.00014787,2]
[341912545,1731280252199,-596.59,0.00014787,2]
[341912546,1731280252211,-500.0,0.00014787,2]
[341912547,1731280252221,-936.04,0.00014787,2]
[341912548,1731280252231,-1001.76,0.00014787,2]
[341912549,1731280252240,-500.0,0.00014787,2]
[341912550,1731280252249,-643.75,0.00014787,2]
[341912551,1731280252258,-500.0,0.00014787,2]
[341912552,1731280252267,-500.0,0.00014787,2]
[341912553,1731280252276,-500.0,0.00014787,2]
[341912554,1731280252285,-500.0,0.00014787,2]
[341912555,1731280252295,-742.85,0.00014787,2]
[341912556,1731280252304,-483.68549525,0.00014787,2]
[341912557,1731280252314,-678.76,0.00014787,2]
[341912558,1731280252324,-500.0,0.00014787,2]
[341912559,1731280252334,-500.0,0.00014787,2]
[341912560,1731280252345,-2869.42,0.00014787,2]
[341912561,1731280252359,-500.0,0.00014787,2]
[341912562,1731280252369,-500.0,0.00014787,2]
[341912563,1731280252379,-500.0,0.00014787,2]
[341912564,1731280252391,-500.0,0.00014787,2]
[341912565,1731280252402,-500.0,0.00014787,2]
[341912566,1731280252411,-832.54,0.00014787,2]
[341912567,1731280252420,-4079.37,0.00014787,2]
[341912568,1731280252431,-500.0,0.00014787,2]
[341912569,1731280252442,-170.69555304,0.00014787,2]
[341912570,1731280252452,-500.0,0.00014787,2]
[341912571,1731280252463,-579.75,0.00014787,2]
[341912572,1731280252472,-500.0,0.00014787,2]
[341912573,1731280252481,-2806.16,0.00014787,2]
[341912574,1731280252490,-500.0,0.00014787,2]
[341912575,1731280252499,-568.61,0.00014787,2]
[341912576,1731280252509,-500.0,0.00014787,2]
[341912577,1731280252518,-568.61,0.00014787,2]
[341912578,1731280252527,-561.54,0.00014787,2]
[341912579,1731280252536,-500.0,0.00014787,2]
[341912580,1731280252546,-736.7,0.00014787,2]
[341912581,1731280252557,-788.7,0.00014787,2]
[341912582,1731280252566,-500.0,0.00014787,2]
[341912583,1731280252575,-994.63,0.00014787,2]
[341912584,1731280252586,-500.0,0.00014787,2]
[341912585,1731280252598,-500.0,0.00014787,2]
[341912586,1731280252608,-500.0,0.00014787,2]
[341912587,1731280252618,-500.0,0.00014787,2]
[341912588,1731280252627,-1872.47,0.00014787,2]
[341912589,1731280252640,-500.0,0.00014787,2]
[341912590,1731280252652,-500.0,0.00014787,2]
[341912591,1731280252662,-1254.1,0.00014787,2]
[341912592,1731280252671,-500.0,0.00014787,2]
[341912593,1731280252681,-3399.68,0.00014787,2]
[341912594,1731280252690,-500.0,0.00014787,2]
[341912595,1731280252700,-500.0,0.00014787,2]
[341912596,1731280252709,-500.0,0.00014787,2]
[341912597,1731280252719,-500.0,0.00014787,2]
[341912598,1731280252728,-500.0,0.00014787,2]
[341912599,1731280252738,-500.0,0.00014787,2]
[341912600,1731280252748,-500.0,0.00014787,2]
[341912601,1731280252758,-500.0,0.00014787,2]
[341912602,1731280252768,-623.64,0.00014787,2]
[341912603,1731280252777,-500.0,0.00014787,2]
[341912604,1731280252787,-538.37,0.00014787,2]
[341912605,1731280252796,-560.88,0.00014787,2]
[341912606,1731280252806,-500.0,0.00014787,2]
[341912607,1731280252815,-500.0,0.00014787,2]
[341912608,1731280252825,-500.0,0.00014787,2]
[341912609,1731280252835,-500.0,0.00014787,2]
[341912610,1731280252845,-500.0,0.00014787,2]
[341912611,1731280252854,-500.0,0.00014787,2]
[341912612,1731280252864,-500.0,0.00014787,2]
[341912613,1731280252873,-782.21,0.00014787,2]
[341912614,1731280252882,-500.0,0.00014787,2]
[341912615,1731280252891,-500.0,0.00014787,2]
[341912616,1731280252901,-506.75,0.00014787,2]
[341912617,1731280252910,-1385.43,0.00014787,2]
[341912618,1731280252919,-1011.61,0.00014787,2]
[341912619,1731280252929,-500.0,0.00014787,2]
[341912620,1731280252939,-500.0,0.00014787,2]
[341912621,1731280252948,-500.0,0.00014787,2]
[341912622,1731280252957,-1327.46,0.00014787,2]
[341912623,1731280252970,-500.0,0.00014787,2]
[341912624,1731280252979,-2498.54,0.00014787,2]
[341912625,1731280252989,-1134.7,0.00014787,2]
[341912626,1731280252998,-500.0,0.00014787,2]
[341912627,1731280253008,-500.0,0.00014787,2]
[341912628,1731280253018,-567.47,0.00014787,2]
[341912629,1731280253027,-500.0,0.00014787,2]
[341912630,1731280253037,-528.71,0.00014787,2]
[341912631,1731280253046,-714.33,0.00014787,2]
[341912632,1731280253056,-500.0,0.00014787,2]
[341912633,1731280253066,-2669.86,0.00014787,2]
[341912634,1731280253075,-500.0,0.00014787,2]
[341912635,1731280253084,-500.0,0.00014787,2]
[341912636,1731280253093,-878.19,0.00014787,2]
[341912637,1731280253103,-500.0,0.00014787,2]
[341912638,1731280253112,-500.0,0.00014787,2]
[341912639,1731280253121,-500.0,0.00014787,2]
[341912640,1731280253130,-500.0,0.00014787,2]
[341912641,1731280253140,-500.0,0.00014787,2]
[341912642,1731280253149,-500.0,0.00014787,2]
[341912643,1731280253158,-549.45,0.00014787,2]
[341912644,1731280253167,-500.0,0.00014787,2]
[341912645,1731280253176,-500.0,0.00014787,2]
[341912646,1731280253185,-500.0,0.00014787,2]
[341912647,1731280253194,-500.0,0.00014787,2]
[341912648,1731280253203,-500.0,0.00014787,2]
[341912649,1731280253214,-500.0,0.00014787,2]
[341912650,1731280253223,-500.0,0.00014787,2]
[341912651,1731280253232,-573.69,0.00014787,2]
[341912652,1731280253242,-500.0,0.00014787,2]
[341912653,1731280253251,-500.0,0.00014787,2]
[341912654,1731280253261,-1799.86,0.00014787,2]
[341912655,1731280253270,-1070.25,0.00014787,2]
[341912656,1731280253280,-500.0,0.00014787,2]
[341912657,1731280253289,-576.29,0.00014788,2]
[341912658,1731280253299,-991.63,0.00014788,2]
[341912659,1731280253308,-500.0,0.00014788,2]
[341912660,1731280253317,-2076.26,0.00014788,2]
[341912661,1731280253326,-500.0,0.00014788,2]
[341912662,1731280253336,-1509.36,0.00014788,2]
[341912663,1731280253346,-1020.5,0.00014788,2]
[341912664,1731280253359,-1106.25,0.00014788,2]
[341912665,1731280253368,-966.38,0.00014788,2]
[341912666,1731280253377,-935.31,0.00014788,2]
[341912667,1731280253386,-1075.93,0.00014788,2]
[341912668,1731280253395,-600.19,0.00014788,2]
[341912669,1731280253404,-453.05,0.00014788,2]
[341912670,1731280253413,-284.47,0.00014788,2]
[341912671,1731280253424,-500.0,0.00014788,2]
[341912672,1731280253433,-640.36,0.00014788,2]
[341912673,1731280253443,-500.0,0.00014788,2]
[341912674,1731280253451,-727.85,0.00014788,2]
[341912675,1731280253466,-500.0,0.00014788,2]
[341912676,1731280253475,-500.0,0.00014788,2]
[341912677,1731280253485,-500.0,0.00014788,2]
[341912678,1731280253494,-500.0,0.00014788,2]
[341912679,1731280253503,-629.56,0.00014788,2]
[341912680,1731280253513,-1177.07,0.00014788,2]
[341912681,1731280253522,-533.64,0.00014788,2]
[341912682,1731280253531,-1289.62,0.00014788,2]
[341912683,1731280253540,-1809.03,0.00014788,2]
[341912684,1731280253550,-977.94,0.00014788,2]
[341912685,1731280253559,-1995.64,0.00014788,2]
[341912686,1731280253568,-500.0,0.00014788,2]
[341912687,1731280253578,-893.22,0.00014788,2]
[341912688,1731280253587,-581.61,0.00014788,2]
[341912689,1731280253597,-906.47,0.00014788,2]
[341912690,1731280253606,-1690.58,0.00014788,2]
[341912691,1731280253616,-1630.22,0.00014788,2]
[341912692,1731280253625,-650.97,0.00014788,2]
[341912693,1731280253634,-515.07,0.00014788,2]
[341912694,1731280253644,-1438.57,0.00014788,2]
[341912695,1731280253653,-507.03,0.00014788,2]
[341912696,1731280253662,-675.33,0.00014788,2]
[341912697,1731280253671,-500.0,0.00014788,2]
[341912698,1731280253680,-641.79,0.00014788,2]
[341912699,1731280253689,-634.43,0.00014788,2]
[341912700,1731280253698,-500.0,0.00014788,2]
[341912701,1731280253709,-500.0,0.00014788,2]
[341912702,1731280253719,-500.0,0.00014788,2]
[341912703,1731280253728,-500.0,0.00014788,2]
[341912704,1731280253738,-825.14,0.00014788,2]
[341912705,1731280253748,-923.1,0.00014788,2]
[341912706,1731280253758,-1049.07,0.00014788,2]
[341912707,1731280253768,-1464.68,0.00014788,2]
[341912708,1731280253778,-1065.88,0.00014788,2]
[341912709,1731280253787,-500.0,0.00014788,2]
[341912710,1731280253797,-500.0,0.00014788,2]
[341912711,1731280253806,-568.61,0.00014788,2]
[341912712,1731280253816,-505.31,0.00014789,2]
[341912713,1731280253826,-2954.72,0.00014789,2]
[341912714,1731280253835,-2486.65,0.00014789,2]